Cogmind - Beta 16 @@@ ROGUE MODE // 2025.11.07 @ 16:46:42 Player: C0-2MO Result: Destroyed by D-53 Grenadier with Mini Grenade Launcher Performance ------------- Evolutions (0) 0 Regions Visited (2) 400 Robots Destroyed (19) 95 Value Destroyed (175) 175 Prototype IDs (0) 0 Alien Tech Used (0) 0 Bonus (0) 0 TOTAL SCORE: 670 Bonus ------- None Cogmind --------- Core Integrity 0/250 Matter 300/300 Energy 123/125 System Corruption 0% Temperature Cool (4) Movement Flying (37) Location -10/Mines Parts ------- > --- POWER (1) -------- Light Ion Engine > --- PROPULSION (2) --- Flight Unit Flight Unit > --- UTILITY (2) ------ Hacking Suite > --- WEAPON (2) ------- Light Assault Rifle Light Assault Rifle > --- INVENTORY (5) ---- Flight Unit Flight Unit Hacking Suite Light Assault Rifle Mining Laser Peak State ------------ > --- POWER ------------ Light Ion Engine > --- PROPULSION ------- Flight Unit Flight Unit > --- UTILITY ---------- Seismic Detector Hacking Suite > --- WEAPON ----------- Light Assault Rifle Light Assault Rifle > --- INVENTORY -------- Flight Unit Flight Unit Grenade Launcher Mining Laser [Rating: 9] Favorites ----------- Power Light Ion Engine Engine Light Ion Engine Propulsion Flight Unit Treads Light Treads Flight Unit Flight Unit Utility Seismic Detector Device Seismic Detector Hackware Hacking Suite Protection Light Armor Plating Weapon Light Assault Rifle Ballistic Gun Light Assault Rifle Launcher Grenade Launcher Special Weapon Mining Laser Build | -11 -10 -10 ------- Run | Yrd Mat Min Slots Evolved . | . . . Power . | . . . Propulsion . | . . . Utility . | . . . Weapon . | . . . Parts Attached 22 | 4 11 7 Power 2 | . 1 1 Engine 2 | . 1 1 Core . | . . . Reactor . | . . . Propulsion 9 | 2 4 3 Treads 2 | 2 . . Leg . | . . . Wheel . | . . . Hover . | . . . Flight 7 | . 4 3 Utility 3 | 1 2 . Device 1 | 1 . . Storage . | . . . Processor . | . . . Hackware 1 | . 1 . Protection 1 | . 1 . Artifact . | . . . Weapon 8 | 1 4 3 Energy Gun . | . . . Energy Cannon . | . . . Ballistic Gun 6 | 1 3 2 Ballistic Cannon . | . . . Launcher 1 | . . 1 Special Weapon 1 | . 1 . Impact Weapon . | . . . Slashing Weapon . | . . . Piercing Weapon . | . . . Special Melee Weapon . | . . . Unidentified Prototypes . | . . . Parts Lost 8 | . . 8 Power 1 | . . 1 Propulsion 4 | . . 4 Utility 1 | . . 1 Weapon 2 | . . 2 Highest Loss Streak 5 | . . 5 To Critical Strikes . | . . . Average Backups 4 | . 4 4 Power . | . . . Propulsion 1 | . 1 1 Utility . | . . 1 Weapon 1 | . 2 1 Tool/Special . | . . . Unused Backups 3 | . . 3 Power . | . . . Propulsion 2 | . . 2 Utility 1 | . . 1 Weapon . | . . . Tool/Special . | . . . Average Slot Usage (%) 89 | . 92 81 Engine 10 | . 10 10 Flight 25 | . 26 24 Device 11 | . 14 5 Hackware 11 | . 9 14 Protection 1 | . 2 . Ballistic Gun 25 | . 26 25 Peak Build Rating 9 | 4 9 9 Average Rating 7 | 2 7 7 On Entrance 4 | . 4 9 Avg Prop Armor Cover (%) 30 | 30 29 . Naked Turns . | . . . Heaviest Build 7 | 3 7 7 Greatest Support 8 | 3 8 8 Greatest Overweight (x) 1 | . . 1 Average Overweight (x) . | . . . Largest Inventory Capacity 5 | 5 5 5 Average Capacity 5 | 5 5 5 Most Carried 5 | 2 5 5 Average Carried 4 | . 4 4 Final Capacity 5 | 5 5 5 Final Carried 5 | 2 5 5 Class Distribution -------------------- 71% | Scavenger-Mutant 28% | Mutant Dominant Class ---------------- Scavenger-Mutant | -10/Materials Scavenger-Mutant | -10/Mines Resources | -11 -10 -10 ----------- Run | Yrd Mat Min Matter Collected 694 | 300 293 101 Remotely . | . . . Salvage Created 539 | 166 324 49 Parts 38 | 8 23 7 Haulers Intercepted 2 | . 2 . Recyclers Shooed . | . . . Parts Field Recycled . | . . . Retrieved Matter . | . . . Parts Self-Destructed . | . . . Prevented . | . . . Parts Restored . | . . . Kills | -11 -10 -10 ------- Run | Yrd Mat Min Combat Hostiles Destroyed 13 | . 6 7 Guns 9 | . 6 3 AOE 4 | . . 4 Classes Destroyed 7 | 2 4 1 Tunneler 3 | 3 . . Hauler 2 | . 2 . Recycler 2 | 1 1 . Operator 2 | . 2 . Watcher 1 | . 1 . Swarmer 9 | . 6 3 Assembled 4 | . . 4 Best Kill Streak 5 | 4 5 4 Combat Bots Only 4 | . 3 4 Max Kills in Single Turn 2 | 1 1 2 Gunslinging . | . . . Exploded 2 | . . 2 Melee . | . . . Uniques/NPCs Destroyed . | . . . Combat | -11 -10 -10 -------- Run | Yrd Mat Min Hostile Shots Fired 103 | . 38 65 Missed 47 | . 20 27 Hits 56 | . 18 38 Melee 5 | . . 5 Projectile 51 | . 18 33 AOE 1 | . . 1 Damage Taken 718 | . 157 561 Core 255 | . 29 226 Absorbed by Shields . | . . . Regen/Repaired (Parts) 5 | . 5 . Core Remaining (%) 100 | 100 . . Volleys Fired 68 | 20 39 9 Largest 2 | 1 2 2 Hottest 100 | 20 100 50 Shots Fired 110 | 20 74 16 Gun 105 | 20 71 14 Cannon . | . . . Launcher 2 | . . 2 Special 3 | . 3 . Kinetic 105 | 20 71 14 Thermal 3 | . 3 . Explosive 2 | . . 2 Electromagnetic . | . . . Robot Hit Streak 13 | 13 8 4 Robot Miss Streak 3 | 2 3 3 Penetration Max . | . . . Secondary Targets . | . . . Shots Hit Robots 61 | 16 36 9 Core Hits 37 | 5 17 15 Critical Kills . | . . . Critical Parts Destroyed . | . . . Critical Strikes . | . . . Melee Attacks . | . . . Impact . | . . . Slashing . | . . . Piercing . | . . . Sneak Attacks . | . . . Combat Hostiles . | . . . Follow-up Attacks . | . . . Damage Inflicted 1154 | 211 388 555 Guns 683 | 211 388 84 Cannons . | . . . Explosions 471 | . . 471 Melee . | . . . Ramming . | . . . Kinetic 683 | 211 388 84 Thermal . | . . . Explosive 471 | . . 471 Electromagnetic . | . . . Impact . | . . . Slashing . | . . . Piercing . | . . . Highest Corruption . | . . . Average Corruption . | . . . Corruption Purged . | . . . Corruption Blocked . | . . . Overload Shots . | . . . Overflow Damage 2 | . . 2 Projectiles . | . . . Explosions 2 | . . 2 Melee . | . . . Knockbacks . | . . . Impact . | . . . Kinetic . | . . . Secondary . | . . . Self-Inflicted Damage 24 | . . 24 Shots 1 | . . 1 Rammed . | . . . Targets Rammed . | . . . Kicked . | . . . Crushed . | . . . Highest Temperature 56 | . 56 18 Average Temperature 10 | . 10 8 Received Heat Transfer 104 | . 24 80 Siege Activations . | . . . Martial Activations . | . . . Shielding Activations . | . . . Robots Disrupted . | . . . Combat Hostiles . | . . . Robots Corrupted . | . . . Combat Hostiles . | . . . Parts Fried . | . . . Impact Corruptions . | . . . Robots Melted . | . . . Combat Hostiles . | . . . Parts Melted . | . . . Heat Transferred . | . . . Parts Sabotaged . | . . . Parts Stolen . | . . . Parts Stripped . | . . . Power Chain Reactions . | . . . Alert | -11 -10 -10 ------- Run | Yrd Mat Min Maximum Alert Level . | . . . Low Security (%) 100 | 100 100 100 Level 1 . | . . . Level 2 . | . . . Level 3 . | . . . Level 4 . | . . . Level 5 . | . . . High Security . | . . . Max Security . | . . . Peak Influence 180 | 10 180 76 Initial 56 | . 3 56 Average 85 | 2 120 23 Influence Increases 579 | 20 437 122 Destroy 0b10 Robot/C 180 | . 120 60 Destroy 0b10 Robot/NC 50 | 20 30 . Destroy Leader 36 | . 26 10 Successful Hack 3 | . 3 . Select Force Hacks 60 | . 60 . Destroy Structure 10 | . 3 7 Partial Spotted 75 | . 30 45 Lose Combat Pursuer 165 | . 165 . Influence Decreases 579 | 15 297 267 Entered New Map 91 | . 2 89 Time Decay 415 | 15 295 105 Lost Part 73 | . . 73 Squads Dispatched 4 | . 4 . Investigation 3 | . 3 . Extermination . | . . . Reinforcement 1 | . 1 . Assault . | . . . Garrison . | . . . Intercept . | . . . Searches Triggered . | . . . Construction Impeded . | . . . Haulers Reinforced . | . . . Active Scanning Responses . | . . . Cargo Convoy Interrupts . | . . . Stealth | -11 -10 -10 --------- Run | Yrd Mat Min Distress Signals 2 | . 1 1 Communications Jammed . | . . . Distress Signals . | . . . Times Spotted 47 | . 20 27 Peak Tracking Total 16 | . 4 16 Tactical Retreats 9 | . 6 3 Traps | -11 -10 -10 ------- Run | Yrd Mat Min Traps Triggered . | . . . Indirectly . | . . . Trap Hack Attempts . | . . . Triggered . | . . . Disarmed . | . . . Reprogrammed . | . . . Reused . | . . . Traps Extracted . | . . . Installed . | . . . Triggered . | . . . Machines | -11 -10 -10 ---------- Run | Yrd Mat Min Machines Disabled . | . . . Max in Single Turn . | . . . Machines Repaired . | . . . Machines Dismantled . | . . . Machines Sabotaged . | . . . Overloaded Fab Kills . | . . . Hacking | -11 -10 -10 --------- Run | Yrd Mat Min Machines Accessed 11 | . 11 . Terminals 8 | . 8 . Fabricators . | . . . Repair Stations 1 | . 1 . Recycling Units 2 | . 2 . Scanalyzers . | . . . Garrison Access . | . . . Total Hacks 31 | . 31 . Successful 16 | . 16 . Failed 14 | . 14 . Catastrophic . | . . . Database Lockouts 1 | . 1 . Manual 29 | . 29 . Terminals 28 | . 28 . Fabricators . | . . . Repair Stations 1 | . 1 . Recycling Units 2 | . 2 . Scanalyzers . | . . . Garrison Access . | . . . Terminal Hacks 3 | . 3 . Record 1 | . 1 . Robot Analysis 1 | . 1 . Terminal Index 1 | . 1 . Fabricator Hacks . | . . . Repair Station Hacks . | . . . Recycling Unit Hacks . | . . . Scanalyzer . | . . . Garrison Access Hacks . | . . . Unauthorized Hacks 13 | . 13 . Terminals 10 | . 10 . Track 1 | . 1 . Botnet 3 | . 3 . Skim 6 | . 6 . Fabricators . | . . . Repair Stations 1 | . 1 . Patch 1 | . 1 . Recycling Units 2 | . 2 . Tunnel 2 | . 2 . Scanalyzers . | . . . Garrison Access . | . . . Data Cores Recovered 1 | . 1 . Used . | . . . Hacking Detections 8 | . 8 . Full Trace Events . | . . . Feedback Events . | . . . Feedback Blocked . | . . . Robot Schematics Acquired . | . . . Robots Built . | . . . Authchips . | . . . Time . | . . . Total Robot Build Rating . | . . . Part Schematics Acquired . | . . . Parts Built . | . . . Authchips . | . . . Time . | . . . Total Part Build Rating . | . . . Part Studies Acquired . | . . . Parts Repaired . | . . . Time . | . . . Parts Recycled . | . . . Recycled Matter . | . . . Retrieved Matter . | . . . Retrieved Components . | . . . Parts Scanalyzed . | . . . Part Schematics Acquired . | . . . Parts Damaged . | . . . Bothacking | -11 -10 -10 ------------ Run | Yrd Mat Min Used RIF Installer . | . . . Robots Hacked . | . . . Non-combat . | . . . Combat . | . . . Robot Hacks Applied . | . . . Relay Couplers Released . | . . . Fabnet Peak Effective % . | . . . Robots Rewired . | . . . Allies Hacked . | . . . Hacks Repelled . | . . . Allies | -11 -10 -10 -------- Run | Yrd Mat Min Total Allies . | . . . Largest Group . | . . . Highest-Rated Group . | . . . Highest-Rated Ally . | . . . Total Orders . | . . . Ally Attacks . | . . . Total Damage . | . . . Kills . | . . . Allies Corrupted . | . . . Allies Melted . | . . . Intel | -11 -10 -10 ------- Run | Yrd Mat Min Active Infowar (turns) 774 | 3 665 106 Seismic 774 | 3 665 106 Robot Analysis Total 1 | . 1 . Derelict Logs Recovered 1 | . . 1 Drone Launches . | . . . Drone Recoveries . | . . . Exploration | -11 -10 -10 ------------- Run | Yrd Mat Min Turns Passed 1025 | 69 665 291 Spaces Moved 1315 | 41 909 365 Core 66 | 41 24 1 Treads . | . . . Legs . | . . . Wheels . | . . . Hover . | . . . Flight 1249 | . 885 364 Fastest Speed 37 | 50 37 37 Average Speed 38 | 50 37 38 Slowest Speed 120 | 50 50 120 Overloaded Moves . | . . . Propulsion Burnouts . | . . . Robots Hopped 23 | . 12 11 Potential Cave-ins . | . . . Cave-ins Triggered . | . . . Exploration Rate (%) 58 | 5 95 74 Regions Visited 2 Branch Regions 1 Pre-discovered Areas 4 | . 3 1 Known Exits Taken . | . . . Unknown Exits Taken 2 | 1 1 . Scrap Searched . | . . . Spaces Dug 3 | . 3 . Terrain Destroyed 10 | . 3 7 Melee . | . . . Projectile 3 | . 3 . AOE 7 | . . 7 Terrain Rammed . | . . . Walls Destroyed . | . . . Machines Disabled . | . . . Actions | -11 -10 -10 --------- Run | Yrd Mat Min Total 1702 | 66 1148 488 Wait 296 | . 182 114 Move 1271 | 40 887 344 Hop 19 | . 9 10 Pick Up 11 | 2 7 2 Fast Attach 12 | 4 4 4 Attach 5 | . 2 3 Detach . | . . . Swap 11 | . 9 2 Drop 9 | . 9 . Fire 68 | 20 39 9 Melee . | . . . Ram . | . . . Kick . | . . . Crush . | . . . Escape Stasis . | . . . Rewire . | . . . Trap . | . . . Miscellaneous . | . . . Route ------- -11/Scrapyard -10/Materials (discovered 6 exits: [*Mat x3] / [*Min x2] / Sub) -10/Mines (discovered 1 exit: [*Mat]) History --------- Turn | Location | Event 7 | -11/Scrapyard | Discovered new exit (range 15) 70 | -11/Scrapyard | Entered Materials 153 | -10/Materials | Discovered new exit (range 16) 182 | -10/Materials | Discovered new exit (range 16) 268 | -10/Materials | Discovered new exit (range 7) 375 | -10/Materials | Discovered new exit (range 8) 439 | -10/Materials | Central database locked down 458 | -10/Materials | Discovered new exit (range 8) 502 | -10/Materials | Identified exit to Subcaves 556 | -10/Materials | Loaded intel: 8 terminal locations 563 | -10/Materials | Build established: Scavenger-Mutant 630 | -10/Materials | Learned 2 Mines zone layouts 652 | -10/Materials | Learned Recycling recycling unit intel 666 | -10/Materials | Learned Storage stockpile data 668 | -10/Materials | Learned location of Mines (-10) 679 | -10/Materials | Learned 4 Recycling zone layouts 701 | -10/Materials | Learned 2 Storage zone layouts 731 | -10/Materials | Learned 4 Recycling zone layouts 735 | -10/Materials | Entered Mines 740 | -10/Mines | Met a Derelict bent on vengeance 742 | -10/Mines | Learned location of Storage (-7) 751 | -10/Mines | Assembled infested the area 756 | -10/Mines | Assisted by a Guerilla fighting off Assembled 785 | -10/Mines | Core integrity fell below 50% 793 | -10/Mines | Core integrity fell below 20% 828 | -10/Mines | Lost 5 parts (1p3n1w) 874 | -10/Mines | Lost 3 parts (1n1u1w) 1021 | -10/Mines | Found a hidden stash of uninstalled traps 1026 | -10/Mines | Discovered new exit (range 12) 1026 | -10/Mines | Destroyed by D-53 Grenadier with Mini Grenade Launcher Last Messages --------------- 00845_ Acquired Lgt. Assault Rifle. 00846_ S-10 Pest destroyed. 00847_ Acquired 11 matter. 00849_ Acquired Flight Unit. 00851_ Acquired 10 matter. 00852_ Acquired Flight Unit. 00854_ Acquired 13 matter. 00854_ Acquired Flight Unit. 00859_ Acquired Lgt. Ion Engine. 00990_ Acquired 2 matter. 00994_ Acquired 14 matter. 00994_ Acquired 19 matter. 00996_ Acquired 13 matter. 00996_ Acquired 12 matter. 00998_ Acquired 7 matter. 01010_ K-01 Serf collects debris. 01021_ A stash of uninstalled traps is collected here! 01023_ K-01 Serf collects debris. 01026_ EXIT=FOUND Map ----- +----------------------------------------------------+ | | | | | | | | | | | | | | | | | | | | | | | ??????????????????????????????????? | | ??????????????????????????????????? | | ??????????????????????????????????? | | ??????????????????????????????????? | | ??????????????????????????????????? | | ??????????????????????????????????? | | ??????????????????????????????????? | | ??????????????????????????????????? | | ??????????????????????????????????? | | ??????????????????????????????????? | | ??????????????????????????????????? | | ??????????????????????????????????? | | ??????????????????????????????????? | | ?????????? < ########?????? | | ?????????? d @ #?????? | | ?????????????????# ###### #?????? | | ?????????????????????????# #?????? | | ?????????????????????????# #?????? | | ####?????????????????????# #?????? | | ##????????????????????# #?????? | | #????????????????????# #?????? | | #####????????????????# ###???? | | ?????????????#### ##??? | | ????#??????## & #??? | | #####????? ### & &#??? | | ##?##???????# & #??? | | ####???????###### #??? | | ##???????????# #??? | | ##??????????## #??? | | #??????????## ##?? | | #?????????## #?? | | #?????????# #? | | " #?????##### ## #? | | ## ##????# #### #? | | #### ##???# %######??## ##? | | #??# ##??# #?????????###?? | | ??## ##?# #?????????????? | | ?## #?# ##????????????? | | ## % ### ####?????????? | +----------------------------------------------------+ Best States ------------- Heat Dissipation 25 Energy Generation 10 Energy Capacity 125 Matter Stores 300 Matter Capacity 300 Sight Range 16 Terrain Scan Density 10 Armor Coverage 150 Evasion (%) 62 Offensive Hacking 10 Item Schematics ----------------- None Robot Schematics ------------------ None Fabricated ------------ Nothing Repaired ---------- Nothing Studied --------- None Alien Tech Used ----------------- None Achievements -------------- None Challenges ------------ None Game ------ Seed ZipBehemothFilter Manual? 0 Play Time 00:17:26 Cumulative 615.2 hours Start 2025.11.07 @ 16:32:31 End 2025.11.07 @ 16:46:42 Sessions 1 Manual Loads 0 Difficulty Rogue Special Mode None Game No. 256 Rogue 256 Adventurer 0 Explorer 0 Win Type - Total 46 Types 20/4/7/2/6/1/0/3/0/3 Lore% 96 Gallery% 88 Achievement% 74 Wizard Run 0 Options --------- Layout 1 ASCII 0 Keyboard 0 Movement Numpad Keybinds 0 Fullscreen 1 Font 24/Smallcaps Map View 50x35 Zoom Use 0% Tactical HUD 1 Map Filters NONE Filters NONE Steam 1 RUN: a4a2faae-761f-4c73-9afc-e2406c650246